[Event "Titled Tuesday Blitz August 16 Early 2022"]
[White "Shapiro, Daniel"]
[Black "Averjanov, Alexey"]
[WhiteFideId "2001780"]
[BlackFideId "14109867"]
[WhiteElo "2284"]
[BlackElo "2399"]
[Result "1/2-1/2"]
[Round "07"]
[TimeControl "180+2"]
[Date "2022.08.18"]
[WhiteClock "0:00:00"]
[BlackClock "0:00:00"]

1. d4 {[%clk 0:00:00]}  d5 {[%clk 0:00:00]} 2. c4 {[%clk 0:00:00]}  dxc4 {[%clk 0:00:00]} 3. e4 {[%clk 0:00:00]}  Nf6 {[%clk 0:00:00]} 4. e5 {[%clk 0:00:00]}  Nd5 {[%clk 0:00:00]} 5. Bxc4 {[%clk 0:00:00]}  Nb6 {[%clk 0:00:00]} 6. Bd3 {[%clk 0:00:00]}  Nc6 {[%clk 0:00:00]} 7. Ne2 {[%clk 0:00:00]}  Nb4 {[%clk 0:00:00]} 8. Be4 {[%clk 0:00:00]}  N4d5 {[%clk 0:00:00]} 9. Nbc3 {[%clk 0:00:00]}  Be6 {[%clk 0:00:00]} 10. O-O {[%clk 0:00:00]}  c6 {[%clk 0:00:00]} 11. a3 {[%clk 0:00:00]}  g6 {[%clk 0:00:00]} 12. Qc2 {[%clk 0:00:00]}  Bg7 {[%clk 0:00:00]} 13. f4 {[%clk 0:00:00]}  Qd7 {[%clk 0:00:00]} 14. f5 {[%clk 0:00:00]}  gxf5 {[%clk 0:00:00]} 15. Bxf5 {[%clk 0:00:00]}  Bxf5 {[%clk 0:00:00]} 16. Qxf5 {[%clk 0:00:00]}  Qxf5 {[%clk 0:00:00]} 17. Rxf5 {[%clk 0:00:00]}  e6 {[%clk 0:00:00]} 18. Rf3 {[%clk 0:00:00]}  O-O {[%clk 0:00:00]} 19. Ng3 {[%clk 0:00:00]}  f5 {[%clk 0:00:00]} 20. Nh5 {[%clk 0:00:00]}  Rf7 {[%clk 0:00:00]} 21. Bg5 {[%clk 0:00:00]}  h6 {[%clk 0:00:00]} 22. Nxg7 {[%clk 0:00:00]}  Kxg7 {[%clk 0:00:00]} 23. Bc1 {[%clk 0:00:00]}  Kh7 {[%clk 0:00:00]} 24. Rh3 {[%clk 0:00:00]}  f4 {[%clk 0:00:00]} 25. Ne4 {[%clk 0:00:00]}  Kg6 {[%clk 0:00:00]} 26. g3 {[%clk 0:00:00]}  Rg8 {[%clk 0:00:00]} 27. Nd6 {[%clk 0:00:00]}  Rff8 {[%clk 0:00:00]} 28. Nxb7 {[%clk 0:00:00]}  Kh7 {[%clk 0:00:00]} 29. Nc5 {[%clk 0:00:00]}  Rg6 {[%clk 0:00:00]} 30. b3 {[%clk 0:00:00]}  Nc3 {[%clk 0:00:00]} 31. Bd2 {[%clk 0:00:00]}  Ne2+ {[%clk 0:00:00]} 32. Kf2 {[%clk 0:00:00]}  Nxd4 {[%clk 0:00:00]} 33. Bxf4 {[%clk 0:00:00]}  Nd5 {[%clk 0:00:00]} 34. Rh4 {[%clk 0:00:00]}  Nf5 {[%clk 0:00:00]} 35. Rh5 {[%clk 0:00:00]}  Ng7 {[%clk 0:00:00]} 36. Rh4 {[%clk 0:00:00]}  h5 {[%clk 0:00:00]} 37. Rc1 {[%clk 0:00:00]}  Rg4 {[%clk 0:00:00]} 38. Rxg4 {[%clk 0:00:00]}  hxg4 {[%clk 0:00:00]} 39. Nd3 {[%clk 0:00:00]}  Nh5 {[%clk 0:00:00]} 40. Rxc6 {[%clk 0:00:00]}  Nhxf4 {[%clk 0:00:00]} 41. Nxf4 {[%clk 0:00:00]}  Nxf4 {[%clk 0:00:00]} 42. gxf4 {[%clk 0:00:00]}  Rxf4+ {[%clk 0:00:00]} 43. Kg3 {[%clk 0:00:00]}  Rf3+ {[%clk 0:00:00]} 44. Kxg4 {[%clk 0:00:00]}  Rxb3 {[%clk 0:00:00]} 45. Rxe6 {[%clk 0:00:00]}  Rxa3 {[%clk 0:00:00]} 46. h4 {[%clk 0:00:00]}  Ra1 {[%clk 0:00:00]} 47. Re7+ {[%clk 0:00:00]}  Kh6 {[%clk 0:00:00]} 48. Re6+ {[%clk 0:00:00]}  Kg7 {[%clk 0:00:00]} 49. Kf5 {[%clk 0:00:00]}  Rf1+ {[%clk 0:00:00]} 50. Ke4 {[%clk 0:00:00]}  Rh1 {[%clk 0:00:00]} 51. Re7+ {[%clk 0:00:00]}  Kg8 {[%clk 0:00:00]} 52. Rxa7 {[%clk 0:00:00]}  Rxh4+ {[%clk 0:00:00]} 53. Kd5 {[%clk 0:00:00]}  Rh1 {[%clk 0:00:00]} 54. Ke6 {[%clk 0:00:00]}  Rh6+ {[%clk 0:00:00]} 55. Kf5 {[%clk 0:00:00]}  Rb6 {[%clk 0:00:00]} 56. e6 {[%clk 0:00:00]}  Rb1 {[%clk 0:00:00]} 57. Kf6 {[%clk 0:00:00]}  Rb8 {[%clk 0:00:00]} 58. e7 {[%clk 0:00:00]}  Rb6+ {[%clk 0:00:00]} 59. Ke5 {[%clk 0:00:00]}  Kf7 {[%clk 0:00:00]} 60. e8=Q+ {[%clk 0:00:00]}  Kxe8 {[%clk 0:00:00]} 61. Kd5 {[%clk 0:00:00]}  Rg6 {[%clk 0:00:00]} 62. Ke5 {[%clk 0:00:00]}  Kd8 {[%clk 0:00:00]} 63. Kd5 {[%clk 0:00:00]}  Rf6 {[%clk 0:00:00]} 64. Ke5 {[%clk 0:00:00]}  Rb6 {[%clk 0:00:00]} 65. Kd5 {[%clk 0:00:00]}  Kc8 {[%clk 0:00:00]} 66. Ke5 {[%clk 0:00:00]}  Rh6 {[%clk 0:00:00]} 67. Rg7 {[%clk 0:00:00]}  Kd8 {[%clk 0:00:00]} 68. Kd5 {[%clk 0:00:00]}  Ke8 {[%clk 0:00:00]} 69. Ke5 {[%clk 0:00:00]}  Kf8 {[%clk 0:00:00]} 70. Rb7 {[%clk 0:00:00]}  Ra6 {[%clk 0:00:00]} 71. Kd5 {[%clk 0:00:00]}  Rf6 {[%clk 0:00:00]} 72. Ke5 {[%clk 0:00:00]}  Rg6 {[%clk 0:00:00]} 73. Kf5 {[%clk 0:00:00]}  Rc6 {[%clk 0:00:00]} 74. Ke5 {[%clk 0:00:00]}  Ke8 {[%clk 0:00:00]} 75. Kd5 {[%clk 0:00:00]}  Ra6 {[%clk 0:00:00]} 76. Kc5 {[%clk 0:00:00]}  Kd8 {[%clk 0:00:00]} 77. Kd5 {[%clk 0:00:00]}  Kc8 {[%clk 0:00:00]} 78. Rg7 {[%clk 0:00:00]}  Rb6 {[%clk 0:00:00]} 79. Kc5 {[%clk 0:00:00]}  Rb7 {[%clk 0:00:00]} 80. Rxb7 {[%clk 0:00:00]}  Kxb7 {[%clk 0:00:00]} 1/2-1/2


[Site "https://www.chess.com"]

[Event "Titled Tuesday Blitz August 16 Early 2022"]
[White "Shukhman, Anna"]
[Black "Mouhamad, Joachim"]
[WhiteFideId "54180058"]
[BlackFideId "656410"]
[WhiteElo "1726"]
[BlackElo "2147"]
[Result "1/2-1/2"]
[Round "07"]
[TimeControl "180+2"]
[Date "2022.08.18"]
[WhiteClock "0:00:00"]
[BlackClock "0:00:00"]

1. e4 {[%clk 0:00:00]}  c6 {[%clk 0:00:00]} 2. d4 {[%clk 0:00:00]}  d5 {[%clk 0:00:00]} 3. f3 {[%clk 0:00:00]}  dxe4 {[%clk 0:00:00]} 4. fxe4 {[%clk 0:00:00]}  e5 {[%clk 0:00:00]} 5. Nf3 {[%clk 0:00:00]}  Bg4 {[%clk 0:00:00]} 6. Bc4 {[%clk 0:00:00]}  Nd7 {[%clk 0:00:00]} 7. O-O {[%clk 0:00:00]}  Ngf6 {[%clk 0:00:00]} 8. c3 {[%clk 0:00:00]}  Bd6 {[%clk 0:00:00]} 9. Qb3 {[%clk 0:00:00]}  O-O {[%clk 0:00:00]} 10. Bg5 {[%clk 0:00:00]}  b5 {[%clk 0:00:00]} 11. Bd3 {[%clk 0:00:00]}  h6 {[%clk 0:00:00]} 12. Bxf6 {[%clk 0:00:00]}  Nxf6 {[%clk 0:00:00]} 13. Nbd2 {[%clk 0:00:00]}  Re8 {[%clk 0:00:00]} 14. Rad1 {[%clk 0:00:00]}  Qc7 {[%clk 0:00:00]} 15. h3 {[%clk 0:00:00]}  Be6 {[%clk 0:00:00]} 16. Qc2 {[%clk 0:00:00]}  Nd7 {[%clk 0:00:00]} 17. Nb3 {[%clk 0:00:00]}  a5 {[%clk 0:00:00]} 18. d5 {[%clk 0:00:00]}  cxd5 {[%clk 0:00:00]} 19. exd5 {[%clk 0:00:00]}  Bxd5 {[%clk 0:00:00]} 20. Bh7+ {[%clk 0:00:00]}  Kh8 {[%clk 0:00:00]} 21. Rxd5 {[%clk 0:00:00]}  Nf6 {[%clk 0:00:00]} 22. Be4 {[%clk 0:00:00]}  Nxd5 {[%clk 0:00:00]} 23. Bxd5 {[%clk 0:00:00]}  a4 {[%clk 0:00:00]} 24. Bxa8 {[%clk 0:00:00]}  axb3 {[%clk 0:00:00]} 25. Qe4 {[%clk 0:00:00]}  bxa2 {[%clk 0:00:00]} 26. Bd5 {[%clk 0:00:00]}  Qa7+ {[%clk 0:00:00]} 27. Kh2 {[%clk 0:00:00]}  a1=Q {[%clk 0:00:00]} 28. Rxa1 {[%clk 0:00:00]}  Qxa1 {[%clk 0:00:00]} 29. Bxf7 {[%clk 0:00:00]}  Rf8 {[%clk 0:00:00]} 30. Bb3 {[%clk 0:00:00]}  Qc1 {[%clk 0:00:00]} 31. Nh4 {[%clk 0:00:00]}  Qf4+ {[%clk 0:00:00]} 32. Qxf4 {[%clk 0:00:00]}  Rxf4 {[%clk 0:00:00]} 33. Ng6+ {[%clk 0:00:00]}  Kh7 {[%clk 0:00:00]} 34. Nxf4 {[%clk 0:00:00]}  exf4 {[%clk 0:00:00]} 35. Kg1 {[%clk 0:00:00]}  Kg6 {[%clk 0:00:00]} 36. Bc2+ {[%clk 0:00:00]}  Kf6 {[%clk 0:00:00]} 37. Bd3 {[%clk 0:00:00]}  Bc5+ {[%clk 0:00:00]} 38. Kf1 {[%clk 0:00:00]}  b4 {[%clk 0:00:00]} 39. cxb4 {[%clk 0:00:00]}  Bxb4 {[%clk 0:00:00]} 40. Ke2 {[%clk 0:00:00]}  Ke5 {[%clk 0:00:00]} 41. Kf3 {[%clk 0:00:00]}  h5 {[%clk 0:00:00]} 42. Bg6 {[%clk 0:00:00]}  h4 {[%clk 0:00:00]} 43. Bh5 {[%clk 0:00:00]}  g5 {[%clk 0:00:00]} 44. Bg4 {[%clk 0:00:00]}  Kd4 {[%clk 0:00:00]} 45. Ke2 {[%clk 0:00:00]}  Be7 {[%clk 0:00:00]} 46. b3 {[%clk 0:00:00]}  Kc3 {[%clk 0:00:00]} 47. Be6 {[%clk 0:00:00]}  Kb4 {[%clk 0:00:00]} 48. Kd3 {[%clk 0:00:00]}  Bf6 {[%clk 0:00:00]} 49. Ke4 {[%clk 0:00:00]}  Bd8 {[%clk 0:00:00]} 50. Kf5 {[%clk 0:00:00]}  Kc3 {[%clk 0:00:00]} 51. Bd7 {[%clk 0:00:00]}  Kxb3 {[%clk 0:00:00]} 52. Kg4 {[%clk 0:00:00]}  Kc3 {[%clk 0:00:00]} 53. Bc6 {[%clk 0:00:00]}  Kd2 {[%clk 0:00:00]} 54. Ba8 {[%clk 0:00:00]}  Ke3 {[%clk 0:00:00]} 55. Bf3 {[%clk 0:00:00]}  Kf2 {[%clk 0:00:00]} 56. Bc6 {[%clk 0:00:00]}  Ke3 {[%clk 0:00:00]} 57. Bf3 {[%clk 0:00:00]}  Kd4 {[%clk 0:00:00]} 58. Bb7 {[%clk 0:00:00]}  Ke5 {[%clk 0:00:00]} 59. Bf3 {[%clk 0:00:00]}  Kf6 {[%clk 0:00:00]} 60. Bb7 {[%clk 0:00:00]}  Bb6 {[%clk 0:00:00]} 61. Bf3 {[%clk 0:00:00]}  Be3 {[%clk 0:00:00]} 62. Bb7 {[%clk 0:00:00]}  Bc1 {[%clk 0:00:00]} 63. Bf3 {[%clk 0:00:00]}  Ke5 {[%clk 0:00:00]} 64. Bb7 {[%clk 0:00:00]}  Bd2 {[%clk 0:00:00]} 65. Bf3 {[%clk 0:00:00]}  Kd6 {[%clk 0:00:00]} 66. Kxg5 {[%clk 0:00:00]}  Be1 {[%clk 0:00:00]} 67. Kxf4 {[%clk 0:00:00]}  Bg3+ {[%clk 0:00:00]} 68. Kg4 {[%clk 0:00:00]}  Ke7 {[%clk 0:00:00]} 69. Be4 {[%clk 0:00:00]}  Kf8 {[%clk 0:00:00]} 1/2-1/2


[Site "https://www.chess.com"]

[Event "Titled Tuesday Blitz August 16 Early 2022"]
[White "Simonovic, Miroslav"]
[Black "Alexikov, Alexander"]
[WhiteFideId "919152"]
[BlackFideId "14103958"]
[WhiteElo "2043"]
[BlackElo "2253"]
[Result "1-0"]
[Round "07"]
[TimeControl "180+2"]
[Date "2022.08.18"]
[WhiteClock "0:00:00"]
[BlackClock "0:00:00"]

1. d4 {[%clk 0:00:00]}  Nf6 {[%clk 0:00:00]} 2. Bg5 {[%clk 0:00:00]}  e6 {[%clk 0:00:00]} 3. e4 {[%clk 0:00:00]}  h6 {[%clk 0:00:00]} 4. Bxf6 {[%clk 0:00:00]}  Qxf6 {[%clk 0:00:00]} 5. Nf3 {[%clk 0:00:00]}  d6 {[%clk 0:00:00]} 6. e5 {[%clk 0:00:00]}  Qd8 {[%clk 0:00:00]} 7. Bd3 {[%clk 0:00:00]}  Nc6 {[%clk 0:00:00]} 8. O-O {[%clk 0:00:00]}  g5 {[%clk 0:00:00]} 9. h3 {[%clk 0:00:00]}  Bg7 {[%clk 0:00:00]} 10. Re1 {[%clk 0:00:00]}  O-O {[%clk 0:00:00]} 11. Nc3 {[%clk 0:00:00]}  f5 {[%clk 0:00:00]} 12. exf6 {[%clk 0:00:00]}  Qxf6 {[%clk 0:00:00]} 13. d5 {[%clk 0:00:00]}  Ne5 {[%clk 0:00:00]} 14. Nxe5 {[%clk 0:00:00]}  Qxf2+ {[%clk 0:00:00]} 15. Kh1 {[%clk 0:00:00]}  Bxe5 {[%clk 0:00:00]} 16. Qh5 {[%clk 0:00:00]}  Qf6 {[%clk 0:00:00]} 17. Rf1 {[%clk 0:00:00]}  Qg7 {[%clk 0:00:00]} 18. Rxf8+ {[%clk 0:00:00]}  Kxf8 {[%clk 0:00:00]} 19. Rf1+ {[%clk 0:00:00]}  Ke7 {[%clk 0:00:00]} 20. Bg6 {[%clk 0:00:00]}  Bf4 {[%clk 0:00:00]} 21. g3 {[%clk 0:00:00]}  e5 {[%clk 0:00:00]} 22. gxf4 {[%clk 0:00:00]}  gxf4 {[%clk 0:00:00]} 23. Rg1 {[%clk 0:00:00]}  Qf6 {[%clk 0:00:00]} 24. Qxh6 {[%clk 0:00:00]}  Bd7 {[%clk 0:00:00]} 25. Qh7+ {[%clk 0:00:00]}  Kd8 {[%clk 0:00:00]} 26. Ne4 {[%clk 0:00:00]} 1-0


[Site "https://www.chess.com"]

[Event "Titled Tuesday Blitz August 16 Early 2022"]
[White "Siniauski, Artsiom"]
[Black "Koridze, Lile"]
[WhiteFideId "13512269"]
[BlackFideId "13612514"]
[WhiteElo "2139"]
[BlackElo "2050"]
[Result "0-1"]
[Round "07"]
[TimeControl "180+2"]
[Date "2022.08.18"]
[WhiteClock "0:00:00"]
[BlackClock "0:00:00"]

1. e4 {[%clk 0:00:00]}  c5 {[%clk 0:00:00]} 2. Nf3 {[%clk 0:00:00]}  d6 {[%clk 0:00:00]} 3. c3 {[%clk 0:00:00]}  Nf6 {[%clk 0:00:00]} 4. Be2 {[%clk 0:00:00]}  g6 {[%clk 0:00:00]} 5. O-O {[%clk 0:00:00]}  Nc6 {[%clk 0:00:00]} 6. d4 {[%clk 0:00:00]}  cxd4 {[%clk 0:00:00]} 7. cxd4 {[%clk 0:00:00]}  Bg7 {[%clk 0:00:00]} 8. Nc3 {[%clk 0:00:00]}  O-O {[%clk 0:00:00]} 9. Re1 {[%clk 0:00:00]}  a6 {[%clk 0:00:00]} 10. h3 {[%clk 0:00:00]}  b5 {[%clk 0:00:00]} 11. a3 {[%clk 0:00:00]}  Bb7 {[%clk 0:00:00]} 12. Bf1 {[%clk 0:00:00]}  Rc8 {[%clk 0:00:00]} 13. Bf4 {[%clk 0:00:00]}  Na5 {[%clk 0:00:00]} 14. e5 {[%clk 0:00:00]}  dxe5 {[%clk 0:00:00]} 15. dxe5 {[%clk 0:00:00]}  Nd5 {[%clk 0:00:00]} 16. Nxd5 {[%clk 0:00:00]}  Bxd5 {[%clk 0:00:00]} 17. Bg5 {[%clk 0:00:00]}  Nb3 {[%clk 0:00:00]} 18. Rb1 {[%clk 0:00:00]}  Re8 {[%clk 0:00:00]} 19. Qd3 {[%clk 0:00:00]}  h6 {[%clk 0:00:00]} 20. Bh4 {[%clk 0:00:00]}  g5 {[%clk 0:00:00]} 21. Bg3 {[%clk 0:00:00]}  Bxf3 {[%clk 0:00:00]} 22. Qxb3 {[%clk 0:00:00]}  Bd5 {[%clk 0:00:00]} 23. Qb4 {[%clk 0:00:00]}  Qb6 {[%clk 0:00:00]} 24. a4 {[%clk 0:00:00]}  Rc4 {[%clk 0:00:00]} 25. Bxc4 {[%clk 0:00:00]}  Bxc4 {[%clk 0:00:00]} 26. axb5 {[%clk 0:00:00]}  axb5 {[%clk 0:00:00]} 27. Ra1 {[%clk 0:00:00]}  Qb7 {[%clk 0:00:00]} 28. Qc5 {[%clk 0:00:00]}  Rc8 {[%clk 0:00:00]} 29. Ra7 {[%clk 0:00:00]}  Qxg2+ {[%clk 0:00:00]} 30. Kxg2 {[%clk 0:00:00]}  Rxc5 {[%clk 0:00:00]} 31. Rxe7 {[%clk 0:00:00]}  Bd5+ {[%clk 0:00:00]} 32. Kh2 {[%clk 0:00:00]}  Rc2 {[%clk 0:00:00]} 33. b4 {[%clk 0:00:00]}  h5 {[%clk 0:00:00]} 34. h4 {[%clk 0:00:00]}  Bh6 {[%clk 0:00:00]} 35. Rg1 {[%clk 0:00:00]}  Kf8 {[%clk 0:00:00]} 36. Rd7 {[%clk 0:00:00]}  Be6 {[%clk 0:00:00]} 37. Rd8+ {[%clk 0:00:00]}  Ke7 {[%clk 0:00:00]} 38. Rd4 {[%clk 0:00:00]}  g4 {[%clk 0:00:00]} 39. Ra1 {[%clk 0:00:00]}  Be3 {[%clk 0:00:00]} 40. Ra7+ {[%clk 0:00:00]}  Kf8 {[%clk 0:00:00]} 41. Rd8+ {[%clk 0:00:00]}  Kg7 {[%clk 0:00:00]} 42. Kg1 {[%clk 0:00:00]}  Bxa7 {[%clk 0:00:00]} 0-1


[Site "https://www.chess.com"]

[Event "Titled Tuesday Blitz August 16 Early 2022"]
[White "Sultana, Sharmin Shirin"]
[Black "Vysochin, Spartak"]
[WhiteFideId "10204482"]
[BlackFideId "14103516"]
[WhiteElo "1987"]
[BlackElo "2355"]
[Result "0-1"]
[Round "07"]
[TimeControl "180+2"]
[Date "2022.08.18"]
[WhiteClock "0:00:00"]
[BlackClock "0:00:00"]

1. d4 {[%clk 0:00:00]}  d5 {[%clk 0:00:00]} 2. c4 {[%clk 0:00:00]}  e6 {[%clk 0:00:00]} 3. Nc3 {[%clk 0:00:00]}  Nf6 {[%clk 0:00:00]} 4. cxd5 {[%clk 0:00:00]}  exd5 {[%clk 0:00:00]} 5. Bg5 {[%clk 0:00:00]}  c6 {[%clk 0:00:00]} 6. e3 {[%clk 0:00:00]}  Be7 {[%clk 0:00:00]} 7. Bd3 {[%clk 0:00:00]}  O-O {[%clk 0:00:00]} 8. Qc2 {[%clk 0:00:00]}  h6 {[%clk 0:00:00]} 9. Bh4 {[%clk 0:00:00]}  Be6 {[%clk 0:00:00]} 10. Nf3 {[%clk 0:00:00]}  Nbd7 {[%clk 0:00:00]} 11. O-O {[%clk 0:00:00]}  Rc8 {[%clk 0:00:00]} 12. Ne5 {[%clk 0:00:00]}  c5 {[%clk 0:00:00]} 13. f4 {[%clk 0:00:00]}  c4 {[%clk 0:00:00]} 14. Be2 {[%clk 0:00:00]}  a6 {[%clk 0:00:00]} 15. f5 {[%clk 0:00:00]}  Nxe5 {[%clk 0:00:00]} 16. dxe5 {[%clk 0:00:00]}  Nd7 {[%clk 0:00:00]} 17. fxe6 {[%clk 0:00:00]}  Bxh4 {[%clk 0:00:00]} 18. exd7 {[%clk 0:00:00]}  Qxd7 {[%clk 0:00:00]} 19. Rad1 {[%clk 0:00:00]}  Rc5 {[%clk 0:00:00]} 20. Qf5 {[%clk 0:00:00]}  Qxf5 {[%clk 0:00:00]} 21. Rxf5 {[%clk 0:00:00]}  Bg5 {[%clk 0:00:00]} 22. Kf2 {[%clk 0:00:00]}  Rd8 {[%clk 0:00:00]} 23. Bf3 {[%clk 0:00:00]}  g6 {[%clk 0:00:00]} 24. Rxg5 {[%clk 0:00:00]}  hxg5 {[%clk 0:00:00]} 25. Nxd5 {[%clk 0:00:00]}  Kf8 {[%clk 0:00:00]} 26. Nf6 {[%clk 0:00:00]}  Rxd1 {[%clk 0:00:00]} 27. Bxd1 {[%clk 0:00:00]}  Ke7 {[%clk 0:00:00]} 28. Ng4 {[%clk 0:00:00]}  Rb5 {[%clk 0:00:00]} 29. b3 {[%clk 0:00:00]}  c3 {[%clk 0:00:00]} 30. e4 {[%clk 0:00:00]}  Rc5 {[%clk 0:00:00]} 31. Ne3 {[%clk 0:00:00]}  Rxe5 {[%clk 0:00:00]} 32. Nd5+ {[%clk 0:00:00]}  Kd6 {[%clk 0:00:00]} 33. Nxc3 {[%clk 0:00:00]}  b5 {[%clk 0:00:00]} 34. Ke3 {[%clk 0:00:00]}  Rc5 {[%clk 0:00:00]} 35. Ne2 {[%clk 0:00:00]}  Ke5 {[%clk 0:00:00]} 36. b4 {[%clk 0:00:00]}  Rc4 {[%clk 0:00:00]} 37. Bb3 {[%clk 0:00:00]}  Rxb4 {[%clk 0:00:00]} 38. Ng3 {[%clk 0:00:00]}  a5 {[%clk 0:00:00]} 39. Bxf7 {[%clk 0:00:00]}  Kf6 {[%clk 0:00:00]} 40. Bd5 {[%clk 0:00:00]}  a4 {[%clk 0:00:00]} 41. Ne2 {[%clk 0:00:00]}  Rb2 {[%clk 0:00:00]} 42. g3 {[%clk 0:00:00]}  b4 {[%clk 0:00:00]} 43. h3 {[%clk 0:00:00]}  b3 {[%clk 0:00:00]} 44. axb3 {[%clk 0:00:00]}  axb3 {[%clk 0:00:00]} 45. Nd4 {[%clk 0:00:00]}  Rh2 {[%clk 0:00:00]} 46. Nxb3 {[%clk 0:00:00]}  Rxh3 {[%clk 0:00:00]} 47. Kf3 {[%clk 0:00:00]}  Rh1 {[%clk 0:00:00]} 48. Nd2 {[%clk 0:00:00]}  Rd1 {[%clk 0:00:00]} 49. Nc4 {[%clk 0:00:00]}  Rd3+ {[%clk 0:00:00]} 50. Ne3 {[%clk 0:00:00]}  Ra3 {[%clk 0:00:00]} 51. Ke2 {[%clk 0:00:00]}  Ra1 {[%clk 0:00:00]} 52. Ng4+ {[%clk 0:00:00]}  Kg7 {[%clk 0:00:00]} 53. Kf3 {[%clk 0:00:00]}  Ra3+ {[%clk 0:00:00]} 54. Ne3 {[%clk 0:00:00]}  Kf6 {[%clk 0:00:00]} 55. Ke2 {[%clk 0:00:00]}  Ke5 {[%clk 0:00:00]} 56. Ng4+ {[%clk 0:00:00]}  Kd4 {[%clk 0:00:00]} 57. Kf2 {[%clk 0:00:00]}  Ra1 {[%clk 0:00:00]} 58. Nf6 {[%clk 0:00:00]}  Ke5 {[%clk 0:00:00]} 59. Ng4+ {[%clk 0:00:00]}  Kd4 {[%clk 0:00:00]} 60. Nf6 {[%clk 0:00:00]}  Ra5 {[%clk 0:00:00]} 61. Ng4 {[%clk 0:00:00]}  Kd3 {[%clk 0:00:00]} 0-1


[Site "https://www.chess.com"]

[Event "Titled Tuesday Blitz August 16 Early 2022"]
[White "Tasev, Dejan"]
[Black "Papayan, Oleg"]
[WhiteFideId "936618"]
[BlackFideId "4193911"]
[WhiteElo "2253"]
[BlackElo "2038"]
[Result "0-1"]
[Round "07"]
[TimeControl "180+2"]
[Date "2022.08.18"]
[WhiteClock "0:00:00"]
[BlackClock "0:00:00"]

1. e4 {[%clk 0:00:00]}  e5 {[%clk 0:00:00]} 2. Nf3 {[%clk 0:00:00]}  Nc6 {[%clk 0:00:00]} 3. Bc4 {[%clk 0:00:00]}  Bc5 {[%clk 0:00:00]} 4. b4 {[%clk 0:00:00]}  Bxb4 {[%clk 0:00:00]} 5. c3 {[%clk 0:00:00]}  Ba5 {[%clk 0:00:00]} 6. d4 {[%clk 0:00:00]}  d6 {[%clk 0:00:00]} 7. h3 {[%clk 0:00:00]}  Nf6 {[%clk 0:00:00]} 8. O-O {[%clk 0:00:00]}  O-O {[%clk 0:00:00]} 9. Re1 {[%clk 0:00:00]}  exd4 {[%clk 0:00:00]} 10. Bg5 {[%clk 0:00:00]}  h6 {[%clk 0:00:00]} 11. Bh4 {[%clk 0:00:00]}  dxc3 {[%clk 0:00:00]} 12. Re3 {[%clk 0:00:00]}  Ne5 {[%clk 0:00:00]} 13. Be2 {[%clk 0:00:00]}  g5 {[%clk 0:00:00]} 14. Nxg5 {[%clk 0:00:00]}  hxg5 {[%clk 0:00:00]} 15. Bxg5 {[%clk 0:00:00]}  Bb6 {[%clk 0:00:00]} 16. Nxc3 {[%clk 0:00:00]}  Bxe3 {[%clk 0:00:00]} 17. fxe3 {[%clk 0:00:00]}  Be6 {[%clk 0:00:00]} 18. Qf1 {[%clk 0:00:00]}  Ned7 {[%clk 0:00:00]} 19. Qf4 {[%clk 0:00:00]}  Kg7 {[%clk 0:00:00]} 20. Rf1 {[%clk 0:00:00]}  Rh8 {[%clk 0:00:00]} 21. Bd1 {[%clk 0:00:00]}  Qe7 {[%clk 0:00:00]} 22. Bb3 {[%clk 0:00:00]}  c6 {[%clk 0:00:00]} 23. h4 {[%clk 0:00:00]}  Bxb3 {[%clk 0:00:00]} 24. axb3 {[%clk 0:00:00]}  Qe5 {[%clk 0:00:00]} 25. Qxe5 {[%clk 0:00:00]}  dxe5 {[%clk 0:00:00]} 26. Ne2 {[%clk 0:00:00]}  Nxe4 {[%clk 0:00:00]} 27. Be7 {[%clk 0:00:00]}  f6 {[%clk 0:00:00]} 28. Ba3 {[%clk 0:00:00]}  Kf7 {[%clk 0:00:00]} 29. Bb2 {[%clk 0:00:00]}  Ke6 {[%clk 0:00:00]} 30. Nc1 {[%clk 0:00:00]}  Rxh4 {[%clk 0:00:00]} 31. Nd3 {[%clk 0:00:00]}  Rah8 {[%clk 0:00:00]} 0-1


[Site "https://www.chess.com"]

[Event "Titled Tuesday Blitz August 16 Early 2022"]
[White "Terry, Renato"]
[Black "Zhigalko, Sergei"]
[WhiteFideId "3803457"]
[BlackFideId "13502956"]
[WhiteElo "2577"]
[BlackElo "2662"]
[Result "0-1"]
[Round "07"]
[TimeControl "180+1"]
[Date "2022.08.16"]
[WhiteClock "0:00:01"]
[BlackClock "0:00:05"]

1. d4 {[%clk 0:03:00]}  Nf6 {[%clk 0:03:00]} 2. Nf3 {[%clk 0:03:01]}  e6 {[%clk 0:03:00]} 3. c4 {[%clk 0:03:01]}  b6 {[%clk 0:03:01]} 4. g3 {[%clk 0:03:02]}  Ba6 {[%clk 0:03:01]} 5. Qa4 {[%clk 0:03:02]}  Bb7 {[%clk 0:03:01]} 6. Bg2 {[%clk 0:03:03]}  c5 {[%clk 0:03:01]} 7. dxc5 {[%clk 0:03:04]}  bxc5 {[%clk 0:03:02]} 8. O-O {[%clk 0:03:04]}  Be7 {[%clk 0:03:02]} 9. Nc3 {[%clk 0:03:04]}  O-O {[%clk 0:03:03]} 10. Rd1 {[%clk 0:03:04]}  Qb6 {[%clk 0:03:03]} 11. Bf4 {[%clk 0:03:04]}  Rd8 {[%clk 0:03:03]} 12. Qb5 {[%clk 0:03:04]}  d6 {[%clk 0:03:03]} 13. Rd2 {[%clk 0:02:51]}  Qc7 {[%clk 0:03:03]} 14. Rad1 {[%clk 0:02:50]}  a6 {[%clk 0:02:52]} 15. Qa4 {[%clk 0:02:49]}  Nc6 {[%clk 0:02:44]} 16. h3 {[%clk 0:02:45]}  Rd7 {[%clk 0:02:17]} 17. g4 {[%clk 0:02:29]}  h6 {[%clk 0:02:04]} 18. e3 {[%clk 0:02:27]}  Rad8 {[%clk 0:02:03]} 19. Qc2 {[%clk 0:01:34]}  Qb6 {[%clk 0:01:48]} 20. Qb1 {[%clk 0:01:22]}  Nb4 {[%clk 0:01:35]} 21. b3 {[%clk 0:01:10]}  Qa7 {[%clk 0:01:27]} 22. Ne1 {[%clk 0:00:59]}  Bxg2 {[%clk 0:01:23]} 23. Nxg2 {[%clk 0:00:55]}  Qb7 {[%clk 0:01:21]} 24. e4 {[%clk 0:00:48]}  Nc6 {[%clk 0:01:16]} 25. Be3 {[%clk 0:00:46]}  Ne5 {[%clk 0:00:56]} 26. Ne1 {[%clk 0:00:46]}  Ne8 {[%clk 0:00:33]} 27. f4 {[%clk 0:00:28]}  Nc6 {[%clk 0:00:33]} 28. Ne2 {[%clk 0:00:29]}  Nf6 {[%clk 0:00:22]} 29. Ng3 {[%clk 0:00:28]}  Nd4 {[%clk 0:00:15]} 30. Bxd4 {[%clk 0:00:19]}  cxd4 {[%clk 0:00:16]} 31. Re2 {[%clk 0:00:19]}  Rc8 {[%clk 0:00:04]} 32. Nd3 {[%clk 0:00:18]}  Bd8 {[%clk 0:00:02]} 33. e5 {[%clk 0:00:16]}  Ne8 {[%clk 0:00:02]} 34. Rf1 {[%clk 0:00:13]}  Be7 {[%clk 0:00:02]} 35. f5 {[%clk 0:00:12]}  d5 {[%clk 0:00:02]} 36. cxd5 {[%clk 0:00:07]}  Qxd5 {[%clk 0:00:02]} 37. Nh5 {[%clk 0:00:04]}  Rc3 {[%clk 0:00:02]} 38. Qd1 {[%clk 0:00:03]}  Bg5 {[%clk 0:00:03]} 39. h4 {[%clk 0:00:03]}  Be3+ {[%clk 0:00:03]} 40. Kh2 {[%clk 0:00:02]}  Qe4 {[%clk 0:00:04]} 41. Nhf4 {[%clk 0:00:02]}  exf5 {[%clk 0:00:04]} 42. gxf5 {[%clk 0:00:01]}  Qxf5 {[%clk 0:00:05]} 43. e6 {[%clk 0:00:02]}  fxe6 {[%clk 0:00:05]} 44. Ne1 {[%clk 0:00:01]}  Bxf4+ {[%clk 0:00:04]} 45. Kg1 {[%clk 0:00:02]}  e5 {[%clk 0:00:04]} 46. Ng2 {[%clk 0:00:02]}  Nf6 {[%clk 0:00:05]} 47. Ref2 {[%clk 0:00:02]}  Qg4 {[%clk 0:00:05]} 48. Qe1 {[%clk 0:00:02]}  Rdc7 {[%clk 0:00:05]} 49. Rxf4 {[%clk 0:00:01]}  exf4 {[%clk 0:00:05]} 50. Rxf4 {[%clk 0:00:02]}  Qg3 {[%clk 0:00:06]} 51. Qe6+ {[%clk 0:00:02]}  Kh8 {[%clk 0:00:05]} 52. Rxf6 {[%clk 0:00:02]}  Rc1+ {[%clk 0:00:05]} 53. Rf1 {[%clk 0:00:02]}  Rxf1+ {[%clk 0:00:06]} 54. Kxf1 {[%clk 0:00:03]}  Rc1+ {[%clk 0:00:06]} 55. Ne1 {[%clk 0:00:04]}  Qf4+ {[%clk 0:00:04]} 56. Ke2 {[%clk 0:00:03]}  Qe3+ {[%clk 0:00:03]} 57. Qxe3 {[%clk 0:00:04]}  dxe3 {[%clk 0:00:04]} 58. a4 {[%clk 0:00:03]}  Rb1 {[%clk 0:00:04]} 59. Nd3 {[%clk 0:00:01]}  Rxb3 {[%clk 0:00:05]} 60. Nc5 {[%clk 0:00:02]}  Ra3 {[%clk 0:00:04]} 61. h5 {[%clk 0:00:01]}  a5 {[%clk 0:00:05]} 62. Kf3 {[%clk 0:00:01]}  Kg8 {[%clk 0:00:05]} 0-1


[Site "https://www.chess.com"]